[Event "*** Titled Tuesday Blitz"]
[Site "Chess.com"]
[Date "2019.01.01"]
[Round "1"]
[White "itisabigworld"]
[Black "Bryakin_Mikhail"]
[Result "0-1"]
[WhiteElo "2327"]
[BlackElo "2679"]
[TimeControl "180+2"]
[EndTime "13:09:44 PST"]
[Termination "Bryakin_Mikhail won by checkmate"]

1. e4 {[%clk 0:02:56.9]} 1... c6 {[%clk 0:02:58.2]} 2. Nc3 {[%clk 0:02:57.7]}
2... d5 {[%clk 0:02:58.6]} 3. d3 {[%clk 0:02:58.9]} 3... dxe4 {[%clk 0:02:49.5]}
4. Nxe4 {[%clk 0:02:58.9]} 4... Bf5 {[%clk 0:02:44.6]} 5. Ng3 {[%clk 0:02:59.3]}
5... Bg6 {[%clk 0:02:38.5]} 6. N1e2 {[%clk 0:02:57.3]} 6... e6 {[%clk
0:02:29.3]} 7. Nf4 {[%clk 0:02:57.3]} 7... Bd6 {[%clk 0:02:30.4]} 8. Be3 {[%clk
0:02:54.8]} 8... Qc7 {[%clk 0:02:31.3]} 9. Qd2 {[%clk 0:02:54.9]} 9... Ne7
{[%clk 0:02:28.5]} 10. Nxg6 {[%clk 0:02:55.1]} 10... hxg6 {[%clk 0:02:27.9]} 11.
Ne4 {[%clk 0:02:52.5]} 11... Nd7 {[%clk 0:02:19.7]} 12. Nxd6+ {[%clk 0:02:52.4]}
12... Qxd6 {[%clk 0:02:21.6]} 13. O-O-O {[%clk 0:02:47.6]} 13... Nd5 {[%clk
0:02:17.8]} 14. Kb1 {[%clk 0:02:43.2]} 14... Nxe3 {[%clk 0:02:16.6]} 15. fxe3
{[%clk 0:02:44.8]} 15... Rxh2 {[%clk 0:02:08.2]} 16. Be2 {[%clk 0:02:44.7]}
16... O-O-O {[%clk 0:01:58]} 17. Bf3 {[%clk 0:02:43.7]} 17... Rdh8 {[%clk
0:01:56.7]} 18. Rxh2 {[%clk 0:02:43.8]} 18... Rxh2 {[%clk 0:01:57.6]} 19. d4
{[%clk 0:02:45.1]} 19... g5 {[%clk 0:01:26.5]} 20. c4 {[%clk 0:02:45]} 20... Kb8
{[%clk 0:01:21.6]} 21. c5 {[%clk 0:02:44.7]} 21... Qc7 {[%clk 0:01:19.7]} 22. b4
{[%clk 0:02:45.4]} 22... Nf6 {[%clk 0:01:17.7]} 23. Rc1 {[%clk 0:02:32.6]} 23...
g4 {[%clk 0:01:18.3]} 24. Bd1 {[%clk 0:02:31.6]} 24... Ne4 {[%clk 0:01:12]} 25.
Qc2 {[%clk 0:02:31.6]} 25... f5 {[%clk 0:01:13.2]} 26. Bxg4 {[%clk 0:02:31]}
26... Qg3 {[%clk 0:01:07.7]} 27. Bf3 {[%clk 0:02:31.8]} 27... Ng5 {[%clk
0:01:06.5]} 28. Qd1 {[%clk 0:01:39.8]} 28... Nxf3 {[%clk 0:00:58.1]} 29. gxf3
{[%clk 0:01:40.2]} 29... g5 {[%clk 0:00:32.4]} 30. Qb3 {[%clk 0:01:36.6]} 30...
Qf2 {[%clk 0:00:21.6]} 31. a4 {[%clk 0:01:25.7]} 31... Kc7 {[%clk 0:00:21.2]}
32. b5 {[%clk 0:01:26.5]} 32... Qd2 {[%clk 0:00:17.8]} 33. b6+ {[%clk
0:01:26.6]} 33... Kb8 {[%clk 0:00:16.2]} 34. bxa7+ {[%clk 0:01:15.7]} 34... Ka8
{[%clk 0:00:15.9]} 35. Rc2 {[%clk 0:01:14]} 35... Qxc2+ {[%clk 0:00:16.3]} 36.
Qxc2 {[%clk 0:01:14.8]} 36... Rxc2 {[%clk 0:00:18.2]} 37. Kxc2 {[%clk
0:01:15.8]} 37... Kxa7 {[%clk 0:00:20.1]} 38. e4 {[%clk 0:01:16.6]} 38... Kb8
{[%clk 0:00:15.9]} 39. Kd3 {[%clk 0:01:17.2]} 39... Kc7 {[%clk 0:00:17.4]} 40.
Ke3 {[%clk 0:01:15.3]} 40... Kd7 {[%clk 0:00:18.7]} 41. Kf2 {[%clk 0:01:15.7]}
41... Ke7 {[%clk 0:00:20]} 42. a5 {[%clk 0:01:16.9]} 42... Kd7 {[%clk
0:00:17.9]} 43. Ke3 {[%clk 0:01:10.8]} 43... Ke7 {[%clk 0:00:17.7]} 44. Kf2
{[%clk 0:01:05.5]} 44... Kd8 {[%clk 0:00:19]} 45. Ke3 {[%clk 0:01:05.4]} 45...
Kc8 {[%clk 0:00:20.4]} 46. Kd3 {[%clk 0:00:46.7]} 46... Kb8 {[%clk 0:00:21]} 47.
f4 {[%clk 0:00:44.9]} 47... g4 {[%clk 0:00:16.6]} 48. Ke2 {[%clk 0:00:44.8]}
48... Ka7 {[%clk 0:00:16.5]} 49. Kf2 {[%clk 0:00:45.4]} 49... Ka6 {[%clk
0:00:17.7]} 50. d5 {[%clk 0:00:46.2]} 50... cxd5 {[%clk 0:00:18.1]} 51. exd5
{[%clk 0:00:46.4]} 51... exd5 {[%clk 0:00:19.3]} 52. Ke3 {[%clk 0:00:48.3]}
52... Kxa5 {[%clk 0:00:20.4]} 53. Kd4 {[%clk 0:00:50.2]} 53... Kb5 {[%clk
0:00:20.4]} 54. Kxd5 {[%clk 0:00:51.1]} 54... g3 {[%clk 0:00:21.7]} 55. Ke5
{[%clk 0:00:53]} 55... g2 {[%clk 0:00:23]} 56. Kxf5 {[%clk 0:00:54.9]} 56...
g1=Q {[%clk 0:00:24.2]} 57. Ke5 {[%clk 0:00:56.8]} 57... Qxc5+ {[%clk
0:00:26.1]} 58. Ke6 {[%clk 0:00:57.6]} 58... Qf8 {[%clk 0:00:28]} 59. f5 {[%clk
0:00:59.5]} 59... Kc4 {[%clk 0:00:28.5]} 60. f6 {[%clk 0:01:01.4]} 60... b5
{[%clk 0:00:30.4]} 61. f7 {[%clk 0:01:03.3]} 61... b4 {[%clk 0:00:32.1]} 62. Kf6
{[%clk 0:01:05.1]} 62... b3 {[%clk 0:00:34]} 63. Ke6 {[%clk 0:01:07]} 63... b2
{[%clk 0:00:35.9]} 64. Kf6 {[%clk 0:01:07.2]} 64... b1=Q {[%clk 0:00:37]} 65.
Ke6 {[%clk 0:01:07.9]} 65... Qb6+ {[%clk 0:00:37.7]} 66. Kd7 {[%clk 0:01:09.8]}
66... Qxf7+ {[%clk 0:00:38.3]} 67. Kc8 {[%clk 0:01:10.2]} 67... Qbc7# {[%clk
0:00:39.3]} 0-1

[Event "*** Titled Tuesday Blitz"]
[Site "Chess.com"]
[Date "2019.01.01"]
[Round "1"]
[White "Fivetrick"]
[Black "essequamvideris"]
[Result "1-0"]
[WhiteElo "2669"]
[BlackElo "2326"]
[TimeControl "180+2"]
[EndTime "13:09:56 PST"]
[Termination "Fivetrick won by resignation"]

1. e4 {[%clk 0:03:01.3]} 1... g6 {[%clk 0:02:56.9]} 2. d4 {[%clk 0:03:00.7]}
2... Bg7 {[%clk 0:02:58.8]} 3. Be3 {[%clk 0:03:01.2]} 3... d6 {[%clk 0:03:00.5]}
4. Nc3 {[%clk 0:03:01.6]} 4... Nf6 {[%clk 0:03:01.5]} 5. f3 {[%clk 0:03:01.8]}
5... O-O {[%clk 0:03:03.1]} 6. h4 {[%clk 0:03:02.6]} 6... c5 {[%clk 0:03:04.1]}
7. Nge2 {[%clk 0:03:02]} 7... cxd4 {[%clk 0:03:04.4]} 8. Nxd4 {[%clk 0:03:02.6]}
8... Nc6 {[%clk 0:03:06.3]} 9. Bc4 {[%clk 0:03:01.7]} 9... Qb6 {[%clk
0:02:51.2]} 10. Bb3 {[%clk 0:02:40.6]} 10... Nxe4 {[%clk 0:02:43.5]} 11. Nd5
{[%clk 0:02:40.9]} 11... Qa5+ {[%clk 0:02:38.2]} 12. c3 {[%clk 0:02:41.7]} 12...
Ng3 {[%clk 0:02:07.6]} 13. Rh2 {[%clk 0:01:50.5]} 13... e6 {[%clk 0:01:36.1]}
14. Nxc6 {[%clk 0:01:48.8]} 14... bxc6 {[%clk 0:01:38]} 15. Ne7+ {[%clk
0:01:49.3]} 15... Kh8 {[%clk 0:01:39.1]} 16. Nxc6 {[%clk 0:01:50]} 16... Qc7
{[%clk 0:01:38.4]} 17. Nd4 {[%clk 0:01:48.8]} 17... Ba6 {[%clk 0:01:17.1]} 18.
Qd2 {[%clk 0:01:47.6]} 18... Nf1 {[%clk 0:01:17.2]} 19. Qf2 {[%clk 0:01:26.9]}
19... Nxh2 {[%clk 0:01:14.5]} 20. h5 {[%clk 0:01:11.6]} 20... e5 {[%clk
0:00:44]} 21. Nc2 {[%clk 0:00:51]} 21... Nf1 {[%clk 0:00:39.6]} 22. Bg5 {[%clk
0:00:35.6]} 22... f6 {[%clk 0:00:38.9]} 23. Bc1 {[%clk 0:00:27.6]} 23... gxh5
{[%clk 0:00:27.7]} 24. Nb4 {[%clk 0:00:26]} 24... Bc4 {[%clk 0:00:20.9]} 25.
Bxc4 {[%clk 0:00:19.8]} 25... Qxc4 {[%clk 0:00:22.8]} 26. Qxf1 {[%clk
0:00:21.3]} 26... Qxf1+ {[%clk 0:00:24.5]} 27. Kxf1 {[%clk 0:00:22.7]} 27... f5
{[%clk 0:00:25.7]} 28. Kf2 {[%clk 0:00:23.2]} 28... e4 {[%clk 0:00:27]} 29. f4
{[%clk 0:00:24.1]} 29... Bh6 {[%clk 0:00:26.3]} 30. g3 {[%clk 0:00:24.6]} 30...
h4 {[%clk 0:00:27]} 31. Be3 {[%clk 0:00:24.6]} 31... hxg3+ {[%clk 0:00:25.1]}
32. Kxg3 {[%clk 0:00:25.5]} 32... Bg7 {[%clk 0:00:26.2]} 33. Nd5 {[%clk
0:00:23.6]} 33... Rab8 {[%clk 0:00:25.5]} 34. b3 {[%clk 0:00:12.1]} 34... Rb7
{[%clk 0:00:26.4]} 35. Rd1 {[%clk 0:00:10]} 35... Rg8 {[%clk 0:00:26.7]} 36. Kf2
{[%clk 0:00:09]} 36... a5 {[%clk 0:00:27.9]} 37. c4 {[%clk 0:00:10]} 37... a4
{[%clk 0:00:28.8]} 38. b4 {[%clk 0:00:11]} 38... a3 {[%clk 0:00:30.1]} 39. b5
{[%clk 0:00:11.7]} 39... Bb2 {[%clk 0:00:28.8]} 40. Nb4 {[%clk 0:00:08.1]} 40...
Rbg7 {[%clk 0:00:29.3]} 41. Ke2 {[%clk 0:00:07.6]} 41... Rg2+ {[%clk 0:00:30.2]}
42. Bf2 {[%clk 0:00:08.5]} 42... R8g4 {[%clk 0:00:27.4]} 43. Nd5 {[%clk
0:00:09.2]} 43... Rh4 {[%clk 0:00:26.2]} 44. b6 {[%clk 0:00:10]} 44... Rhh2
{[%clk 0:00:27.2]} 45. Rf1 {[%clk 0:00:10.9]} 45... Bd4 {[%clk 0:00:26.6]} 46.
b7 {[%clk 0:00:10.2]} 46... Ba7 {[%clk 0:00:27.2]} 47. Ke1 {[%clk 0:00:08.7]}
47... Kg7 {[%clk 0:00:20.1]} 48. Bxa7 {[%clk 0:00:08.5]} 48... Re2+ {[%clk
0:00:20.7]} 49. Kd1 {[%clk 0:00:09.4]} 49... Rd2+ {[%clk 0:00:22]} 50. Kc1
{[%clk 0:00:10.6]} 50... Rxa2 {[%clk 0:00:22.5]} 51. Bd4+ {[%clk 0:00:10]} 51...
Kf7 {[%clk 0:00:22.6]} 52. b8=Q {[%clk 0:00:10.6]} 52... Rhc2+ {[%clk
0:00:22.5]} 53. Kb1 {[%clk 0:00:08.4]} 53... Rcb2+ {[%clk 0:00:21.5]} 54. Bxb2
{[%clk 0:00:08.9]} 54... Rxb2+ {[%clk 0:00:23.4]} 55. Qxb2 {[%clk 0:00:09.2]}
55... axb2 {[%clk 0:00:25.3]} 56. Kxb2 {[%clk 0:00:10.5]} 1-0

[Event "*** Titled Tuesday Blitz"]
[Site "Chess.com"]
[Date "2019.01.01"]
[Round "1"]
[White "vpsetter"]
[Black "MerdeNoms943"]
[Result "1/2-1/2"]
[WhiteElo "2581"]
[BlackElo "2247"]
[TimeControl "180+2"]
[EndTime "13:10:03 PST"]
[Termination "Game drawn - insufficient material"]

1. e4 {[%clk 0:03:01.9]} 1... d6 {[%clk 0:02:55.4]} 2. d4 {[%clk 0:03:01.3]}
2... Nf6 {[%clk 0:02:56.9]} 3. Nc3 {[%clk 0:02:51]} 3... g6 {[%clk 0:02:58.1]}
4. f3 {[%clk 0:02:50.4]} 4... c6 {[%clk 0:02:52.6]} 5. Be3 {[%clk 0:02:50.1]}
5... Nbd7 {[%clk 0:02:51]} 6. Qd2 {[%clk 0:02:50.3]} 6... b5 {[%clk 0:02:49.1]}
7. O-O-O {[%clk 0:02:51]} 7... Qa5 {[%clk 0:02:35]} 8. Kb1 {[%clk 0:02:49.5]}
8... Bg7 {[%clk 0:02:11.5]} 9. g4 {[%clk 0:02:42.6]} 9... Nb6 {[%clk 0:02:10.7]}
10. e5 {[%clk 0:02:21.7]} 10... Nfd5 {[%clk 0:01:56.7]} 11. Nxd5 {[%clk
0:02:08.4]} 11... Qxd2 {[%clk 0:01:58.6]} 12. Bxd2 {[%clk 0:01:37.1]} 12... Nxd5
{[%clk 0:01:59.3]} 13. Re1 {[%clk 0:01:37.2]} 13... O-O {[%clk 0:01:55.1]} 14.
Bd3 {[%clk 0:01:31.2]} 14... dxe5 {[%clk 0:01:42.6]} 15. dxe5 {[%clk 0:01:30.9]}
15... a6 {[%clk 0:01:44.5]} 16. h3 {[%clk 0:01:23]} 16... Bb7 {[%clk 0:01:36.2]}
17. f4 {[%clk 0:01:07.4]} 17... c5 {[%clk 0:01:34.6]} 18. Be4 {[%clk 0:01:02.2]}
18... e6 {[%clk 0:01:32.1]} 19. Nf3 {[%clk 0:00:54.8]} 19... Rad8 {[%clk
0:01:29.4]} 20. Bc1 {[%clk 0:00:38.5]} 20... Rd7 {[%clk 0:01:29]} 21. h4 {[%clk
0:00:39.3]} 21... Rfd8 {[%clk 0:01:29.5]} 22. h5 {[%clk 0:00:39.4]} 22... c4
{[%clk 0:01:28.5]} 23. Rh2 {[%clk 0:00:34.6]} 23... c3 {[%clk 0:01:28.7]} 24. b3
{[%clk 0:00:28.3]} 24... a5 {[%clk 0:01:24.9]} 25. hxg6 {[%clk 0:00:18]} 25...
hxg6 {[%clk 0:01:25.8]} 26. f5 {[%clk 0:00:19.1]} 26... exf5 {[%clk 0:01:16.5]}
27. gxf5 {[%clk 0:00:20.3]} 27... gxf5 {[%clk 0:01:12.7]} 28. Bxf5 {[%clk
0:00:21.4]} 28... Rc7 {[%clk 0:01:08.2]} 29. e6 {[%clk 0:00:17.6]} 29... Bc8
{[%clk 0:01:01.5]} 30. Ng5 {[%clk 0:00:18.1]} 30... fxe6 {[%clk 0:00:51.5]} 31.
Nxe6 {[%clk 0:00:19.1]} 31... Bxe6 {[%clk 0:00:50.1]} 32. Bxe6+ {[%clk
0:00:19.4]} 32... Kf8 {[%clk 0:00:51.7]} 33. Rf2+ {[%clk 0:00:18.8]} 33... Nf6
{[%clk 0:00:45.6]} 34. Bg5 {[%clk 0:00:15.4]} 34... Re7 {[%clk 0:00:18.7]} 35.
Bxf6 {[%clk 0:00:15.8]} 35... Bxf6 {[%clk 0:00:14.6]} 36. Rxf6+ {[%clk
0:00:16.3]} 36... Ke8 {[%clk 0:00:16.5]} 37. Bf7+ {[%clk 0:00:12.7]} 37... Kf8
{[%clk 0:00:15.4]} 38. Bc4+ {[%clk 0:00:12.3]} 38... Kg7 {[%clk 0:00:14.5]} 39.
Rxe7+ {[%clk 0:00:07.8]} 39... Kxf6 {[%clk 0:00:15.9]} 40. Rf7+ {[%clk
0:00:04.2]} 40... Kg6 {[%clk 0:00:16.8]} 41. Rf1 {[%clk 0:00:05]} 41... bxc4
{[%clk 0:00:18.2]} 42. bxc4 {[%clk 0:00:05.9]} 42... Rb8+ {[%clk 0:00:19.6]} 43.
Kc1 {[%clk 0:00:06.7]} 43... Rb4 {[%clk 0:00:17.1]} 44. Rf4 {[%clk 0:00:06.1]}
44... Rb2 {[%clk 0:00:18.2]} 45. Rf3 {[%clk 0:00:06.7]} 45... Rxa2 {[%clk
0:00:17.5]} 46. Rxc3 {[%clk 0:00:07.7]} 46... Kf6 {[%clk 0:00:18.5]} 47. c5
{[%clk 0:00:08.8]} 47... Ke7 {[%clk 0:00:18.6]} 48. c6 {[%clk 0:00:10.1]} 48...
Kd8 {[%clk 0:00:19.9]} 49. c7+ {[%clk 0:00:11.4]} 49... Kc8 {[%clk 0:00:21.3]}
50. Kb1 {[%clk 0:00:10.7]} 50... Ra4 {[%clk 0:00:22.1]} 51. Kb2 {[%clk 0:00:12]}
51... Rb4+ {[%clk 0:00:20]} 52. Ka3 {[%clk 0:00:13.1]} 52... Rb1 {[%clk
0:00:17.1]} 53. Ka4 {[%clk 0:00:14]} 53... Ra1+ {[%clk 0:00:18.3]} 54. Kb5
{[%clk 0:00:15.1]} 54... a4 {[%clk 0:00:16.8]} 55. Kc6 {[%clk 0:00:16.1]} 55...
Rc1 {[%clk 0:00:15.9]} 56. Kb5 {[%clk 0:00:06.9]} 56... a3 {[%clk 0:00:16.1]}
57. Rxa3 {[%clk 0:00:04.2]} 57... Rxc2 {[%clk 0:00:16.5]} 58. Kb6 {[%clk
0:00:04.3]} 58... Rxc7 {[%clk 0:00:13.2]} 59. Ra8+ {[%clk 0:00:05.3]} 59... Kd7
{[%clk 0:00:14.6]} 60. Ra7 {[%clk 0:00:06.5]} 60... Rxa7 {[%clk 0:00:15.5]} 61.
Kxa7 {[%clk 0:00:08.2]} 1/2-1/2

[Event "*** Titled Tuesday Blitz"]
[Site "Chess.com"]
[Date "2019.01.01"]
[Round "1"]
[White "salomez"]
[Black "TheBigBoss04"]
[Result "1/2-1/2"]
[WhiteElo "2132"]
[BlackElo "2519"]
[TimeControl "180+2"]
[EndTime "13:10:38 PST"]
[Termination "Game drawn by repetition"]

1. e4 {[%clk 0:02:59.2]} 1... g6 {[%clk 0:03:00.8]} 2. d4 {[%clk 0:02:59.6]}
2... Bg7 {[%clk 0:03:02.7]} 3. Nc3 {[%clk 0:03:00]} 3... d6 {[%clk 0:03:03.6]}
4. Bc4 {[%clk 0:03:00.2]} 4... a6 {[%clk 0:03:03]} 5. Nf3 {[%clk 0:02:54.3]}
5... e6 {[%clk 0:03:02.4]} 6. Bg5 {[%clk 0:02:49.1]} 6... Ne7 {[%clk 0:03:02.5]}
7. Qd2 {[%clk 0:02:49.1]} 7... h6 {[%clk 0:03:03.8]} 8. Be3 {[%clk 0:02:49.3]}
8... b5 {[%clk 0:03:04.9]} 9. Bd3 {[%clk 0:02:47.6]} 9... Bb7 {[%clk 0:03:06.5]}
10. a4 {[%clk 0:02:44.7]} 10... b4 {[%clk 0:03:06.4]} 11. Ne2 {[%clk 0:02:45.4]}
11... a5 {[%clk 0:03:07.6]} 12. c3 {[%clk 0:02:45.7]} 12... bxc3 {[%clk
0:03:03.9]} 13. bxc3 {[%clk 0:02:42]} 13... Nd7 {[%clk 0:03:04.5]} 14. O-O
{[%clk 0:02:42.3]} 14... d5 {[%clk 0:02:42.5]} 15. exd5 {[%clk 0:02:21.4]} 15...
Nxd5 {[%clk 0:02:41.4]} 16. Rfb1 {[%clk 0:02:16.1]} 16... Rb8 {[%clk 0:02:29.3]}
17. Rb5 {[%clk 0:01:56.6]} 17... c6 {[%clk 0:02:07.1]} 18. Rb3 {[%clk
0:01:54.5]} 18... Nxe3 {[%clk 0:02:07.9]} 19. fxe3 {[%clk 0:01:54.5]} 19... c5
{[%clk 0:02:08.7]} 20. Rab1 {[%clk 0:01:52.9]} 20... Bxf3 {[%clk 0:02:07.8]} 21.
Rxb8 {[%clk 0:01:42.9]} 21... Nxb8 {[%clk 0:02:09.7]} 22. gxf3 {[%clk
0:01:42.7]} 22... O-O {[%clk 0:02:08.1]} 23. Kh1 {[%clk 0:01:17.6]} 23... Qc7
{[%clk 0:02:04.2]} 24. Rb5 {[%clk 0:01:14.7]} 24... Nd7 {[%clk 0:01:57.2]} 25.
Nf4 {[%clk 0:01:03.5]} 25... cxd4 {[%clk 0:01:55.9]} 26. cxd4 {[%clk 0:01:04]}
26... Ra8 {[%clk 0:01:25.7]} 27. Be4 {[%clk 0:01:02.1]} 27... Rc8 {[%clk
0:01:19]} 28. Rxa5 {[%clk 0:00:58.3]} 28... Nf6 {[%clk 0:01:18.2]} 29. Rc5
{[%clk 0:00:54.3]} 29... Qb8 {[%clk 0:01:13.8]} 30. Rxc8+ {[%clk 0:00:49.5]}
30... Qxc8 {[%clk 0:01:15.7]} 31. Qc2 {[%clk 0:00:42.2]} 31... Qa6 {[%clk
0:01:10.6]} 32. Bd3 {[%clk 0:00:35.3]} 32... Qa8 {[%clk 0:01:09.1]} 33. Kg2
{[%clk 0:00:34.7]} 33... g5 {[%clk 0:01:08.2]} 34. Ne2 {[%clk 0:00:23.9]} 34...
Nd5 {[%clk 0:01:08.9]} 35. Kf2 {[%clk 0:00:14.5]} 35... Nb4 {[%clk 0:01:05.2]}
36. Qb3 {[%clk 0:00:13.2]} 36... Nxd3+ {[%clk 0:01:02.6]} 37. Qxd3 {[%clk
0:00:14.1]} 37... Qxa4 {[%clk 0:01:04.2]} 38. Ng3 {[%clk 0:00:13.9]} 38... Qa2+
{[%clk 0:01:00.5]} 39. Qe2 {[%clk 0:00:14]} 39... Qd5 {[%clk 0:00:58.5]} 40. Nh5
{[%clk 0:00:14.5]} 40... Qd6 {[%clk 0:00:59.6]} 41. Kg2 {[%clk 0:00:13.3]} 41...
Bf8 {[%clk 0:00:56.8]} 42. Nf6+ {[%clk 0:00:12.1]} 42... Kh8 {[%clk 0:00:58]}
43. Qd2 {[%clk 0:00:10.7]} 43... Be7 {[%clk 0:00:57.8]} 44. Ne4 {[%clk
0:00:09.9]} 44... Qc6 {[%clk 0:00:57.9]} 45. Qc3 {[%clk 0:00:10.5]} 45... Qd5
{[%clk 0:00:50.5]} 46. Qc7 {[%clk 0:00:09]} 46... Qa2+ {[%clk 0:00:41.1]} 47.
Kg3 {[%clk 0:00:08.5]} 47... Qa3 {[%clk 0:00:41.7]} 48. Nc5 {[%clk 0:00:06.8]}
48... Bxc5 {[%clk 0:00:31.4]} 49. dxc5 {[%clk 0:00:06.6]} 49... Kg8 {[%clk
0:00:17.9]} 50. c6 {[%clk 0:00:06]} 50... Qxe3 {[%clk 0:00:17.4]} 51. Qd8+
{[%clk 0:00:06.6]} 51... Kg7 {[%clk 0:00:18.3]} 52. c7 {[%clk 0:00:07.1]} 52...
Qg1+ {[%clk 0:00:17]} 53. Kh3 {[%clk 0:00:08]} 53... Qf1+ {[%clk 0:00:16.2]} 54.
Kg3 {[%clk 0:00:08.4]} 54... Qg1+ {[%clk 0:00:08.1]} 55. Kh3 {[%clk 0:00:09.5]}
55... h5 {[%clk 0:00:07.9]} 56. c8=Q {[%clk 0:00:05.2]} 56... Qf1+ {[%clk
0:00:04.4]} 57. Kg3 {[%clk 0:00:06]} 57... Qg1+ {[%clk 0:00:04.6]} 58. Kh3
{[%clk 0:00:06.8]} 58... Qf1+ {[%clk 0:00:05.4]} 59. Kg3 {[%clk 0:00:07.7]}
59... Qg1+ {[%clk 0:00:03.4]} 60. Kh3 {[%clk 0:00:08.7]} 60... Qf1+ {[%clk
0:00:04]} 61. Kg3 {[%clk 0:00:09.8]} 61... Qg1+ {[%clk 0:00:04.7]} 62. Kh3
{[%clk 0:00:10.9]} 62... Qf1+ {[%clk 0:00:05.4]} 63. Kg3 {[%clk 0:00:12]} 63...
Qg1+ {[%clk 0:00:05.8]} 64. Kh3 {[%clk 0:00:13.2]} 1/2-1/2

[Event "*** Titled Tuesday Blitz"]
[Site "Chess.com"]
[Date "2019.01.01"]
[Round "1"]
[White "FancyPlaySyndrome"]
[Black "VladDobrov"]
[Result "0-1"]
[WhiteElo "2441"]
[BlackElo "2846"]
[TimeControl "180+2"]
[EndTime "13:10:40 PST"]
[Termination "VladDobrov won by resignation"]

1. e4 {[%clk 0:03:01.9]} 1... c5 {[%clk 0:03:00.5]} 2. Nf3 {[%clk 0:03:03.3]}
2... Nc6 {[%clk 0:02:59]} 3. Bb5 {[%clk 0:03:04.1]} 3... d6 {[%clk 0:02:57.6]}
4. O-O {[%clk 0:03:05.2]} 4... Bd7 {[%clk 0:02:58.5]} 5. Re1 {[%clk 0:03:06.6]}
5... Nf6 {[%clk 0:02:59.4]} 6. c3 {[%clk 0:03:06.6]} 6... a6 {[%clk 0:03:00.5]}
7. Bf1 {[%clk 0:03:07.5]} 7... Bg4 {[%clk 0:03:01.4]} 8. h3 {[%clk 0:03:08.7]}
8... Bxf3 {[%clk 0:03:01.4]} 9. Qxf3 {[%clk 0:03:10.6]} 9... e6 {[%clk 0:03:02]}
10. Qd1 {[%clk 0:03:12]} 10... Be7 {[%clk 0:03:01.7]} 11. d4 {[%clk 0:03:13.4]}
11... cxd4 {[%clk 0:02:52.7]} 12. cxd4 {[%clk 0:03:14.5]} 12... d5 {[%clk
0:02:54.6]} 13. e5 {[%clk 0:03:15.8]} 13... Ne4 {[%clk 0:02:49.5]} 14. a3 {[%clk
0:03:10.2]} 14... O-O {[%clk 0:02:48.6]} 15. Nc3 {[%clk 0:03:06]} 15... Nxc3
{[%clk 0:02:48.7]} 16. bxc3 {[%clk 0:03:07.9]} 16... Rc8 {[%clk 0:02:48.6]} 17.
Bd3 {[%clk 0:03:06.2]} 17... Na5 {[%clk 0:02:46.8]} 18. Re3 {[%clk 0:03:02.8]}
18... g6 {[%clk 0:02:40.8]} 19. Bc2 {[%clk 0:02:38]} 19... Nc4 {[%clk
0:02:32.5]} 20. Rf3 {[%clk 0:02:37.9]} 20... Qd7 {[%clk 0:02:13]} 21. a4 {[%clk
0:02:31.7]} 21... Rc7 {[%clk 0:02:11.2]} 22. h4 {[%clk 0:02:14.3]} 22... Bxh4
{[%clk 0:01:36.2]} 23. Rh3 {[%clk 0:02:14.7]} 23... Bd8 {[%clk 0:01:29.9]} 24.
Rh6 {[%clk 0:01:32]} 24... f5 {[%clk 0:01:13.8]} 25. exf6 {[%clk 0:01:14.3]}
25... Rxf6 {[%clk 0:01:14.1]} 26. Qe2 {[%clk 0:01:05]} 26... Nd6 {[%clk
0:01:00]} 27. Rh3 {[%clk 0:01:04.7]} 27... Nf5 {[%clk 0:00:59.2]} 28. Bf4 {[%clk
0:01:02.1]} 28... Rc6 {[%clk 0:00:58]} 29. Be5 {[%clk 0:01:02.2]} 29... Rf7
{[%clk 0:00:57.7]} 30. Rb1 {[%clk 0:00:53.3]} 30... Ba5 {[%clk 0:00:57.9]} 31.
Rb3 {[%clk 0:00:50.2]} 31... Qc8 {[%clk 0:00:41.5]} 32. Qd3 {[%clk 0:00:47.8]}
32... Bc7 {[%clk 0:00:33.2]} 33. g4 {[%clk 0:00:39.9]} 33... Ne7 {[%clk
0:00:27.2]} 34. Qe2 {[%clk 0:00:36.8]} 34... Bxe5 {[%clk 0:00:28]} 35. Qxe5
{[%clk 0:00:38.7]} 35... Qc7 {[%clk 0:00:29.4]} 36. Qg5 {[%clk 0:00:31]} 36...
Rb6 {[%clk 0:00:28.6]} 37. Re3 {[%clk 0:00:25.2]} 37... Rxb3 {[%clk 0:00:28.9]}
38. Bxb3 {[%clk 0:00:27.1]} 38... Qd6 {[%clk 0:00:27.9]} 39. Kg2 {[%clk
0:00:27.4]} 39... Nc6 {[%clk 0:00:28.3]} 40. Bc2 {[%clk 0:00:28.4]} 40... Kg7
{[%clk 0:00:28.3]} 41. Rh3 {[%clk 0:00:28.4]} 41... Qf4 {[%clk 0:00:27.6]} 42.
Qh4 {[%clk 0:00:22.8]} 42... h6 {[%clk 0:00:26.7]} 43. Re3 {[%clk 0:00:24.2]}
43... g5 {[%clk 0:00:26.6]} 44. Qg3 {[%clk 0:00:23.3]} 44... Qxg3+ {[%clk
0:00:27.7]} 45. Kxg3 {[%clk 0:00:25]} 45... Kf6 {[%clk 0:00:27]} 46. Re1 {[%clk
0:00:24.2]} 46... Rc7 {[%clk 0:00:27.7]} 47. Rh1 {[%clk 0:00:25.4]} 47... Kg7
{[%clk 0:00:28.8]} 48. Re1 {[%clk 0:00:27.1]} 48... Nd8 {[%clk 0:00:30.1]} 49.
Re3 {[%clk 0:00:27.3]} 49... Kf6 {[%clk 0:00:31.1]} 50. f4 {[%clk 0:00:27.2]}
50... Nf7 {[%clk 0:00:31.2]} 51. Rf3 {[%clk 0:00:27]} 51... Ke7 {[%clk
0:00:31.5]} 52. f5 {[%clk 0:00:27.9]} 52... e5 {[%clk 0:00:30.6]} 53. Re3 {[%clk
0:00:23.5]} 53... Kf6 {[%clk 0:00:31.4]} 54. Bb3 {[%clk 0:00:23]} 54... Rd7
{[%clk 0:00:30.5]} 55. Ba2 {[%clk 0:00:17.9]} 55... h5 {[%clk 0:00:29.6]} 56.
Re1 {[%clk 0:00:18.2]} 56... h4+ {[%clk 0:00:30.2]} 57. Kf3 {[%clk 0:00:18.5]}
57... e4+ {[%clk 0:00:29.6]} 58. Kg2 {[%clk 0:00:19.3]} 58... Nd8 {[%clk
0:00:29.6]} 59. Rb1 {[%clk 0:00:19.6]} 59... Nc6 {[%clk 0:00:31.1]} 60. Rb6
{[%clk 0:00:20.2]} 60... Ke7 {[%clk 0:00:32.6]} 61. Kf2 {[%clk 0:00:21.5]} 61...
Kd6 {[%clk 0:00:34]} 62. Ke3 {[%clk 0:00:19.6]} 62... Rh7 {[%clk 0:00:34.3]} 63.
Rb2 {[%clk 0:00:20.7]} 63... h3 {[%clk 0:00:35]} 64. Rh2 {[%clk 0:00:20.9]}
64... Rh4 {[%clk 0:00:35.8]} 65. c4 {[%clk 0:00:21.8]} 65... Rxg4 {[%clk
0:00:21.5]} 66. Rxh3 {[%clk 0:00:22]} 66... Rh4 {[%clk 0:00:22.9]} 67. Rg3
{[%clk 0:00:22.1]} 67... Ne7 {[%clk 0:00:23.1]} 68. Rxg5 {[%clk 0:00:19.3]}
68... Rh3+ {[%clk 0:00:24.2]} 69. Kf4 {[%clk 0:00:20.8]} 69... Rf3+ {[%clk
0:00:24.1]} 70. Kg4 {[%clk 0:00:22]} 70... Ra3 {[%clk 0:00:24.8]} 71. c5+ {[%clk
0:00:20]} 71... Kd7 {[%clk 0:00:25.7]} 72. f6 {[%clk 0:00:21.5]} 72... Rxa2
{[%clk 0:00:26]} 73. Rg7 {[%clk 0:00:22]} 73... Rg2+ {[%clk 0:00:25.8]} 74. Kf4
{[%clk 0:00:23.6]} 74... Rxg7 {[%clk 0:00:27.4]} 75. fxg7 {[%clk 0:00:24.9]}
75... Ke6 {[%clk 0:00:29.1]} 76. Kg5 {[%clk 0:00:25.4]} 0-1